fUST/lending_fUST_20250716
["ID","MTS","AMOUNT","RATE_DAILY","PERIOD"]
[372479020,1752659444981,-460.0,0.00019452,2]
[372479021,1752659444991,-460.0,0.00019452,2]
[372479022,1752659445001,-460.0,0.00019452,2]
[372479023,1752659445010,-460.0,0.00019452,2]
[372479024,1752659445020,-485.04884817,0.00019452,2]
[372479025,1752659445030,-460.0,0.00019452,2]
[372479026,1752659445039,-460.0,0.00019452,2]
[372479027,1752659445050,-460.0,0.00019452,2]
[372479028,1752659445063,-460.0,0.00019452,2]
[372479029,1752659445073,-883.98,0.00019452,2]
[372479030,1752659445082,-460.0,0.00019452,2]
[372479031,1752659445092,-1614.71,0.00019452,2]
[372479032,1752659445102,-460.0,0.00019452,2]
[372479033,1752659445113,-464.83972985,0.00019452,2]
[372479034,1752659445123,-460.0,0.00019452,2]
[372479035,1752659445134,-460.0,0.00019452,2]
[372479036,1752659445145,-460.0,0.00019452,2]
[372479037,1752659445156,-460.0,0.00019452,2]
[372479038,1752659445165,-344.9961898,0.00019452,2]
[372479039,1752659445175,-460.0,0.00019452,2]
[372479040,1752659445185,-460.0,0.00019452,2]
[372479041,1752659445195,-1846.33,0.00019452,2]
[372479042,1752659445204,-3587.49,0.00019452,2]
[372479043,1752659445214,-460.0,0.00019452,2]
[372479044,1752659445224,-460.0,0.00019452,2]
[372479045,1752659445233,-460.0,0.00019452,2]
[372479046,1752659445315,-460.0,0.00019452,2]
[372479047,1752659445336,-460.0,0.00019452,2]
[372479048,1752659445346,-460.0,0.00019452,2]
[372479049,1752659445357,-460.0,0.00019452,2]
[372479050,1752659445368,-460.0,0.00019452,2]
[372479051,1752659445378,-460.0,0.00019452,2]
[372479052,1752659445388,-460.0,0.00019452,2]
[372479053,1752659445397,-461.48094352,0.00019452,2]
[372479054,1752659445406,-460.0,0.00019452,2]
[372479055,1752659445416,-460.0,0.00019452,2]
[372479056,1752659445426,-460.0,0.00019452,2]
[372479057,1752659445437,-460.0,0.00019452,2]
[372479058,1752659445448,-460.0,0.00019452,2]
[372479059,1752659445459,-460.0,0.00019452,2]
[372479060,1752659445469,-460.0,0.00019452,2]
[372479061,1752659445479,-460.0,0.00019452,2]
[372479062,1752659445489,-460.0,0.00019452,2]
[372479063,1752659445499,-460.0,0.00019452,2]
[372479064,1752659445508,-603.1,0.00019452,2]
[372479065,1752659445517,-2534.47,0.00019452,2]
[372479066,1752659445527,-594.92,0.00019452,2]
[372479067,1752659445537,-460.0,0.00019452,2]
[372479068,1752659445546,-1039.53,0.00019452,2]
[372479069,1752659445556,-460.0,0.00019452,2]
[372479070,1752659445565,-2969.86,0.00019452,2]
[372479071,1752659445575,-460.0,0.00019452,2]
[372479072,1752659445584,-460.0,0.00019452,2]
[372479073,1752659445593,-460.0,0.00019452,2]
[372479074,1752659445603,-460.0,0.00019452,2]
[372479075,1752659445612,-460.0,0.00019452,2]
[372479076,1752659445621,-460.0,0.00019452,2]
[372479077,1752659445633,-460.0,0.00019452,2]
[372479078,1752659445643,-460.0,0.00019452,2]
[372479079,1752659445652,-500.54509105,0.00019473,2]
[372479080,1752659445662,-500.0,0.00019473,2]
[372479081,1752659445671,-500.85113653,0.00019473,2]
[372479082,1752659445681,-503.33669226,0.00019473,2]
[372479083,1752659445690,-500.0,0.00019473,2]
[372479084,1752659445700,-549.49136234,0.00019473,2]
[372479085,1752659445709,-500.0,0.00019473,2]
[372479086,1752659445719,-163.42539539,0.00019473,2]
[372479087,1752659445728,-153.72017957,0.00019473,2]
[372479088,1752659445738,-151.0,0.000195,2]
[372479089,1752659445747,-302.84859387,0.00019533,2]
[372479090,1752659445758,-1190.55742259,0.00019624,2]
[372479091,1752659445767,-325.13529353,0.00019683,2]
[372479092,1752659445777,-151.0,0.000197,2]
[372479093,1752659445787,-500.0,0.00019721,2]
[372479094,1752659445796,-1000.0,0.00019721,2]
[372479095,1752659445806,-944.43106828,0.00019721,2]
[372479096,1752659445815,-512.03409187,0.00019721,2]
[372479097,1752659445825,-259.53571547,0.00019721,2]
[372479098,1752659445835,-1000.0,0.00019721,2]
[372479099,1752659445845,-510.66167608,0.00019721,2]
[372479100,1752659445855,-1000.0,0.00019721,2]
[372479101,1752659445865,-1000.0,0.00019721,2]
[372479102,1752659445875,-1000.0,0.00019721,2]
[372479103,1752659445886,-1000.0,0.00019721,2]
[372479104,1752659445895,-1000.0,0.00019721,2]
[372479105,1752659445905,-1000.0,0.00019721,2]
[372479106,1752659445915,-460.0,0.00019726,2]
[372479108,1752659445925,-460.0,0.00019726,2]
[372479110,1752659445934,-460.0,0.00019726,2]
[372479112,1752659445943,-460.0,0.00019726,2]
[372479113,1752659445953,-460.0,0.00019726,2]
[372479114,1752659445963,-460.0,0.00019726,2]
[372479115,1752659445972,-460.0,0.00019726,2]
[372479116,1752659445982,-460.0,0.00019726,2]
[372479117,1752659445992,-460.0,0.00019726,2]
[372479119,1752659446002,-544.59,0.00019726,2]
[372479121,1752659446011,-460.0,0.00019726,2]
[372479123,1752659446022,-460.0,0.00019726,2]
[372479125,1752659446032,-460.0,0.00019726,2]
[372479126,1752659446041,-460.0,0.00019726,2]
[372479127,1752659446051,-199.5971988,0.00019726,2]
[372479128,1752659446062,-460.0,0.00019726,2]
[372479130,1752659446072,-460.0,0.00019726,2]
[372479132,1752659446081,-460.0,0.00019726,2]
[372479134,1752659446092,-460.0,0.00019726,2]
[372479136,1752659446101,-460.0,0.00019726,2]
[372479138,1752659446113,-460.0,0.00019726,2]
[372479140,1752659446124,-460.0,0.00019726,2]
[372479141,1752659446136,-460.0,0.00019726,2]
[372479142,1752659446146,-460.0,0.00019726,2]
[372479143,1752659446156,-460.0,0.00019726,2]
[372479144,1752659446166,-460.0,0.00019726,2]
[372479145,1752659446175,-460.0,0.00019726,2]
[372479146,1752659446185,-460.0,0.00019726,2]
[372479147,1752659446195,-460.0,0.00019726,2]
[372479148,1752659446204,-460.0,0.00019726,2]
[372479149,1752659446214,-460.0,0.00019726,2]
[372479150,1752659446224,-460.0,0.00019726,2]
[372479151,1752659446233,-460.0,0.00019726,2]
[372479152,1752659446243,-460.0,0.00019726,2]
[372479153,1752659446252,-460.0,0.00019726,2]
[372479154,1752659446262,-274.7850598,0.00019726,2]
[372479155,1752659446272,-460.0,0.00019726,2]
[372479156,1752659446281,-460.0,0.00019726,2]
[372479157,1752659446291,-460.0,0.00019726,2]
[372479158,1752659446301,-460.0,0.00019726,2]
[372479159,1752659446310,-256.49599013,0.00019726,2]
[372479160,1752659446320,-460.0,0.00019726,2]
[372479161,1752659446330,-467.01044138,0.00019726,2]
[372479162,1752659446339,-460.0,0.00019726,2]
[372479163,1752659446349,-460.0,0.00019726,2]
[372479164,1752659446359,-460.0,0.00019726,2]
[372479165,1752659446369,-460.0,0.00019726,2]
[372479166,1752659446379,-493.31476266,0.00019726,2]
[372479167,1752659446388,-460.0,0.00019726,2]
[372479168,1752659446398,-460.0,0.00019726,2]
[372479169,1752659446407,-518.16,0.00019726,2]
[372479170,1752659446417,-460.0,0.00019726,2]
[372479171,1752659446426,-460.0,0.00019726,2]
[372479172,1752659446436,-460.0,0.00019726,2]
[372479173,1752659446446,-460.0,0.00019726,2]
[372479175,1752659446455,-460.0,0.00019726,2]
[372479176,1752659446464,-460.0,0.00019726,2]
[372479177,1752659446474,-460.0,0.00019726,2]
[372479178,1752659446483,-460.0,0.00019726,2]
[372479179,1752659446493,-460.0,0.00019726,2]
[372479180,1752659446503,-460.0,0.00019726,2]
[372479181,1752659446512,-460.0,0.00019726,2]
[372479182,1752659446522,-460.0,0.00019726,2]
[372479183,1752659446532,-460.0,0.00019726,2]
[372479184,1752659446542,-460.0,0.00019726,2]
[372479185,1752659446552,-464.42734761,0.00019726,2]
[372479186,1752659446562,-460.0,0.00019726,2]
[372479187,1752659446571,-581.31,0.00019726,2]
[372479188,1752659446581,-582.87,0.00019726,2]
[372479189,1752659446591,-460.0,0.00019726,2]
[372479190,1752659446600,-560.38,0.00019726,2]
[372479191,1752659446610,-460.0,0.00019726,2]
[372479192,1752659446619,-460.0,0.00019726,2]
[372479193,1752659446630,-460.0,0.00019726,2]
[372479194,1752659446639,-460.0,0.00019726,2]
[372479195,1752659446649,-460.0,0.00019726,2]
[372479196,1752659446659,-598.99,0.00019726,2]
[372479197,1752659446668,-460.0,0.00019726,2]
[372479198,1752659446678,-978.82,0.00019726,2]
[372479199,1752659446688,-460.0,0.00019726,2]
[372479200,1752659446701,-460.0,0.00019726,2]
[372479201,1752659446711,-4969.25,0.00019726,2]
[372479202,1752659446720,-460.0,0.00019726,2]
[372479203,1752659446731,-979.98,0.00019726,2]
[372479204,1752659446741,-460.0,0.00019726,2]
[372479205,1752659446750,-460.0,0.00019726,2]
[372479206,1752659446761,-195.94580795,0.00019726,2]
[372479207,1752659446770,-460.0,0.00019726,2]
[372479208,1752659446782,-460.0,0.00019726,2]
[372479209,1752659446792,-152.29115071,0.00019726,2]
[372479210,1752659446802,-460.0,0.00019726,2]
[372479211,1752659446812,-460.0,0.00019726,2]
[372479212,1752659446821,-460.0,0.00019726,2]
[372479213,1752659446831,-460.0,0.00019726,2]
[372479214,1752659446841,-298.8270784,0.00019726,2]
[372479215,1752659446850,-460.0,0.00019726,2]
[372479216,1752659446860,-460.0,0.00019726,2]
[372479217,1752659446870,-460.0,0.00019726,2]
[372479218,1752659446880,-460.0,0.00019726,2]
[372479219,1752659446890,-460.0,0.00019726,2]
[372479220,1752659446901,-717.91,0.00019726,2]
[372479221,1752659446910,-460.0,0.00019726,2]
[372479222,1752659446920,-460.0,0.00019726,2]
[372479223,1752659446930,-460.0,0.00019726,2]
[372479224,1752659446939,-466.72677547,0.00019726,2]
[372479225,1752659446949,-2271.52,0.00019726,2]
[372479226,1752659446959,-248.28759123,0.00019726,2]
[372479227,1752659446968,-460.0,0.00019726,2]
[372479228,1752659446978,-460.0,0.00019726,2]
[372479229,1752659446987,-460.0,0.00019726,2]
[372479230,1752659446997,-460.0,0.00019726,2]
[372479231,1752659447007,-1800.67,0.00019726,2]
[372479232,1752659447016,-469.31467061,0.00019726,2]
[372479233,1752659447026,-460.0,0.00019726,2]
[372479234,1752659447036,-572.72,0.00019726,2]
[372479235,1752659447045,-460.0,0.00019726,2]
[372479236,1752659447055,-362.79899814,0.00019726,2]
[372479238,1752659447068,-460.0,0.00019726,2]
[372479239,1752659447077,-460.0,0.00019726,2]
[372479240,1752659447087,-460.0,0.00019726,2]
[372479241,1752659447170,-1504.03,0.00019726,2]
[372479242,1752659447180,-460.0,0.00019726,2]
[372479243,1752659447190,-460.0,0.00019726,2]
[372479244,1752659447200,-644.49,0.00019726,2]
[372479245,1752659447211,-460.0,0.00019726,2]
[372479246,1752659447221,-460.0,0.00019726,2]
[372479247,1752659447233,-584.06,0.00019726,2]
[372479248,1752659447243,-460.0,0.00019726,2]
[372479249,1752659447252,-2254.45,0.00019726,2]
[372479250,1752659447262,-460.0,0.00019726,2]
[372479251,1752659447271,-460.0,0.00019726,2]
[372479252,1752659447281,-460.0,0.00019726,2]
[372479253,1752659447290,-730.93,0.00019726,2]
[372479254,1752659447300,-460.0,0.00019726,2]
[372479255,1752659447310,-496.68,0.00019726,2]
[372479256,1752659447319,-460.0,0.00019726,2]
[372479257,1752659447329,-460.0,0.00019726,2]
[372479258,1752659447338,-460.0,0.00019726,2]
[372479259,1752659447348,-460.0,0.00019726,2]
[372479260,1752659447357,-883.98,0.00019726,2]
[372479261,1752659447367,-460.0,0.00019726,2]
[372479262,1752659447376,-1614.71,0.00019726,2]
[372479263,1752659447388,-373.5983566,0.00019726,2]
[372479264,1752659447397,-460.0,0.00019726,2]
[372479265,1752659447406,-460.0,0.00019726,2]
[372479266,1752659447416,-460.0,0.00019726,2]
[372479267,1752659447426,-460.0,0.00019726,2]
[372479268,1752659447435,-460.0,0.00019726,2]
[372479269,1752659447445,-1846.33,0.00019726,2]
[372479270,1752659447455,-3587.49,0.00019726,2]
[372479271,1752659447466,-460.0,0.00019726,2]
[372479272,1752659447478,-460.0,0.00019726,2]
[372479273,1752659447488,-460.0,0.00019726,2]
[372479274,1752659447498,-460.0,0.00019726,2]
[372479275,1752659447508,-462.90036297,0.00019726,2]
[372479276,1752659447518,-460.0,0.00019726,2]
[372479277,1752659447527,-460.0,0.00019726,2]
[372479278,1752659447537,-467.99684841,0.00019726,2]
[372479279,1752659447547,-460.0,0.00019726,2]
[372479280,1752659447556,-460.0,0.00019726,2]
[372479281,1752659447566,-460.0,0.00019726,2]
[372479282,1752659447576,-194.75,0.00019726,2]
[372479283,1752659447586,-586.73547133,0.00019726,2]
[372479284,1752659447596,-460.0,0.00019726,2]
[372479285,1752659447606,-460.0,0.00019726,2]
[372479286,1752659447616,-603.1,0.00019726,2]
[372479287,1752659447625,-2534.47,0.00019726,2]
[372479288,1752659447637,-594.92,0.00019726,2]
[372479289,1752659447647,-415.54,0.00019726,2]
[372479290,1752659447656,-1039.53,0.00019726,2]
[372479291,1752659447666,-460.0,0.00019726,2]
[372479292,1752659447676,-2969.86,0.00019726,2]
[372479293,1752659447685,-460.0,0.00019726,2]
[372479294,1752659447695,-460.0,0.00019726,2]
[372479295,1752659447705,-460.0,0.00019726,2]
[372479296,1752659447714,-460.0,0.00019726,2]
[372479297,1752659447724,-460.0,0.00019726,2]
[372479298,1752659447733,-460.0,0.00019726,2]
[372479299,1752659447742,-460.0,0.00019726,2]
[372479300,1752659447752,-302.69731179,0.00019728,2]
[372479301,1752659447761,-500.0,0.00019773,2]
[372479302,1752659447771,-502.33311944,0.00019773,2]
[372479303,1752659447780,-500.0,0.00019773,2]
[372479304,1752659447789,-500.85482562,0.00019773,2]
[372479305,1752659447799,-501.58314376,0.00019773,2]
[372479306,1752659447809,-500.0,0.00019773,2]
[372479307,1752659447818,-503.14949113,0.00019773,2]
[372479308,1752659447827,-500.0,0.00019773,2]
[372479309,1752659447837,-500.0,0.00019773,2]
[372479310,1752659447847,-500.38517312,0.00019773,2]
[372479311,1752659447858,-500.0,0.00019773,2]
[372479312,1752659447868,-500.0,0.00019773,2]
[372479313,1752659447878,-508.27684544,0.00019773,2]
[372479314,1752659447888,-614.40379172,0.00019773,2]
[372479315,1752659447897,-500.0,0.00019773,2]
[372479316,1752659447907,-151.0,0.000198,2]
[372479317,1752659447918,-82982.17706865,0.0001982,2]
[372479318,1752659447928,-1190.55742259,0.00019866,2]
[372479319,1752659447937,-151.0,0.000199,2]
[372479320,1752659447947,-170.4186172,0.000199,2]
[372479321,1752659447957,-1500.0,0.00019968,2]
[372479322,1752659447967,-788.22281888,0.00019968,2]
[372479323,1752659447977,-490.86054379,0.00019995,2]
[372479324,1752659447986,-460.0,0.0002,2]
[372479325,1752659447996,-460.0,0.0002,2]
[372479326,1752659448006,-460.0,0.0002,2]
[372479327,1752659448016,-460.0,0.0002,2]
[372479328,1752659448025,-460.0,0.0002,2]
[372479329,1752659448035,-544.59,0.0002,2]
[372479330,1752659448045,-460.0,0.0002,2]
[372479331,1752659448056,-460.0,0.0002,2]
[372479332,1752659448069,-460.0,0.0002,2]
[372479333,1752659448079,-460.0,0.0002,2]
[372479334,1752659448089,-460.0,0.0002,2]
[372479335,1752659448098,-460.0,0.0002,2]
[372479336,1752659448110,-460.0,0.0002,2]
[372479337,1752659448119,-460.0,0.0002,2]
[372479338,1752659448131,-460.0,0.0002,2]
[372479339,1752659448141,-456.11139275,0.0002,2]
[372479340,1752659448152,-460.0,0.0002,2]
[372479341,1752659448162,-460.0,0.0002,2]
[372479342,1752659448172,-460.0,0.0002,2]
[372479343,1752659448182,-460.0,0.0002,2]
[372479344,1752659448191,-575.88263686,0.0002,2]
[372479345,1752659448201,-460.0,0.0002,2]
[372479346,1752659448210,-460.0,0.0002,2]
[372479347,1752659448220,-460.0,0.0002,2]
[372479348,1752659448230,-460.0,0.0002,2]
[372479349,1752659448241,-460.0,0.0002,2]
[372479350,1752659448251,-184.69847669,0.0002,2]
[372479351,1752659448260,-460.0,0.0002,2]
[372479352,1752659448270,-460.0,0.0002,2]
[372479353,1752659448279,-460.0,0.0002,2]
[372479354,1752659448289,-522.42211672,0.0002,2]
[372479355,1752659448299,-460.0,0.0002,2]
[372479356,1752659448308,-429.63968313,0.0002,2]
[372479357,1752659448318,-460.0,0.0002,2]
[372479358,1752659448328,-518.16,0.0002,2]
[372479359,1752659448338,-460.0,0.0002,2]
[372479360,1752659448348,-460.0,0.0002,2]
[372479361,1752659448358,-467.87835651,0.0002,2]
[372479362,1752659448368,-460.0,0.0002,2]
[372479363,1752659448378,-460.0,0.0002,2]
[372479364,1752659448387,-460.0,0.0002,2]
[372479365,1752659448397,-460.0,0.0002,2]
[372479366,1752659448407,-460.0,0.0002,2]
[372479367,1752659448417,-460.0,0.0002,2]
[372479368,1752659448426,-181.58391676,0.0002,2]
[372479369,1752659448435,-460.0,0.0002,2]
[372479370,1752659448445,-460.0,0.0002,2]
[372479371,1752659448455,-300.67506845,0.0002,2]
[372479372,1752659448465,-460.0,0.0002,2]
[372479373,1752659448474,-465.12878954,0.0002,2]
[372479374,1752659448484,-581.31,0.0002,2]
[372479375,1752659448493,-460.0,0.0002,2]
[372479376,1752659448503,-560.38,0.0002,2]
[372479377,1752659448512,-510.05651254,0.0002,2]
[372479378,1752659448522,-460.0,0.0002,2]
[372479379,1752659448531,-460.0,0.0002,2]
[372479380,1752659448541,-460.0,0.0002,2]
[372479381,1752659448551,-460.0,0.0002,2]
[372479382,1752659448561,-598.99,0.0002,2]
[372479383,1752659448571,-460.0,0.0002,2]
[372479384,1752659448580,-978.82,0.0002,2]
[372479385,1752659448590,-460.0,0.0002,2]
[372479386,1752659448599,-460.0,0.0002,2]
[372479387,1752659448609,-4969.25,0.0002,2]
[372479388,1752659448618,-460.0,0.0002,2]
[372479389,1752659448628,-979.98,0.0002,2]
[372479390,1752659448638,-460.0,0.0002,2]
[372479391,1752659448648,-460.0,0.0002,2]
[372479392,1752659448658,-460.0,0.0002,2]
[372479393,1752659448667,-460.0,0.0002,2]
[372479394,1752659448677,-460.0,0.0002,2]
[372479395,1752659448687,-460.0,0.0002,2]
[372479396,1752659448696,-460.0,0.0002,2]
[372479397,1752659448705,-460.0,0.0002,2]
[372479398,1752659448715,-153.40435485,0.0002,2]
[372479399,1752659448725,-460.0,0.0002,2]
[372479400,1752659448734,-460.0,0.0002,2]
[372479401,1752659448743,-460.0,0.0002,2]
[372479402,1752659448753,-321.33047103,0.0002,2]
[372479403,1752659448763,-717.91,0.0002,2]
[372479404,1752659448773,-460.0,0.0002,2]
[372479405,1752659448782,-460.0,0.0002,2]
[372479406,1752659448860,-460.0,0.0002,2]
[372479407,1752659448878,-2271.52,0.0002,2]
[372479408,1752659448888,-460.0,0.0002,2]
[372479409,1752659448898,-460.0,0.0002,2]
[372479410,1752659448908,-460.0,0.0002,2]
[372479411,1752659448918,-460.0,0.0002,2]
[372479412,1752659448927,-1800.67,0.0002,2]
[372479413,1752659448936,-460.0,0.0002,2]
[372479414,1752659448946,-572.72,0.0002,2]
[372479415,1752659448955,-460.0,0.0002,2]
[372479416,1752659448965,-460.0,0.0002,2]
[372479417,1752659448975,-460.0,0.0002,2]
[372479418,1752659448985,-460.0,0.0002,2]
[372479419,1752659448994,-1504.03,0.0002,2]
[372479420,1752659449005,-460.0,0.0002,2]
[372479421,1752659449014,-644.49,0.0002,2]
[372479422,1752659449023,-460.0,0.0002,2]
[372479423,1752659449037,-460.0,0.0002,2]
[372479424,1752659449047,-584.06,0.0002,2]
[372479425,1752659449056,-460.0,0.0002,2]
[372479426,1752659449071,-2254.45,0.0002,2]
[372479427,1752659449080,-192.0668854,0.0002,2]
[372479428,1752659449089,-460.0,0.0002,2]
[372479429,1752659449106,-460.0,0.0002,2]
[372479430,1752659449122,-730.93,0.0002,2]
[372479431,1752659449135,-460.0,0.0002,2]
[372479432,1752659449146,-460.0,0.0002,2]
[372479433,1752659449156,-460.0,0.0002,2]
[372479434,1752659449172,-460.0,0.0002,2]
[372479435,1752659449182,-883.98,0.0002,2]
[372479436,1752659449193,-242.12,0.0002,2]
[372479437,1752659449203,-1614.71,0.0002,2]
[372479438,1752659449214,-460.0,0.0002,2]
[372479439,1752659449224,-460.0,0.0002,2]
[372479440,1752659449234,-460.0,0.0002,2]
[372479441,1752659449244,-460.0,0.0002,2]
[372479442,1752659449254,-460.0,0.0002,2]
[372479443,1752659449265,-1846.33,0.0002,2]
[372479444,1752659449275,-3587.49,0.0002,2]
[372479445,1752659449285,-460.0,0.0002,2]
[372479446,1752659449295,-460.0,0.0002,2]
[372479447,1752659449305,-460.0,0.0002,2]
[372479448,1752659449316,-460.0,0.0002,2]
[372479449,1752659449326,-460.0,0.0002,2]
[372479450,1752659449336,-460.0,0.0002,2]
[372479451,1752659449346,-460.0,0.0002,2]
[372479452,1752659449356,-460.0,0.0002,2]
[372479453,1752659449366,-460.0,0.0002,2]
[372479454,1752659449376,-460.0,0.0002,2]
[372479455,1752659449388,-603.1,0.0002,2]
[372479456,1752659449398,-2534.47,0.0002,2]
[372479457,1752659449408,-594.92,0.0002,2]
[372479458,1752659449417,-1039.53,0.0002,2]
[372479459,1752659449428,-460.0,0.0002,2]
[372479460,1752659449437,-2969.86,0.0002,2]
[372479461,1752659449447,-460.0,0.0002,2]
[372479462,1752659449456,-460.0,0.0002,2]
[372479463,1752659449465,-460.0,0.0002,2]
[372479464,1752659449479,-460.0,0.0002,2]
[372479465,1752659449488,-460.0,0.0002,2]
[372479466,1752659449498,-460.0,0.0002,2]
[372479467,1752659449508,-460.0,0.0002,2]
[372479468,1752659449518,-503.18757773,0.00020021,2]
[372479469,1752659449527,-503.86476806,0.00020021,2]
[372479470,1752659449538,-501.90551534,0.00020021,2]
[372479471,1752659449548,-2098.19793351,0.00020035,2]
[372479472,1752659449558,-151.0,0.000201,4]
[372479473,1752659449568,-151.0,0.000201,3]
[372479474,1752659449578,-1190.55742259,0.00020107,2]
[372479475,1752659449588,-179.87408814,0.00020184,2]
[372479476,1752659449598,-307.040607,0.00020187,2]
[372479477,1752659449608,-151.0,0.000202,3]
[372479478,1752659449618,-2579.22,0.00020256,3]
[372479479,1752659449628,-1289.6,0.00020256,3]
[372479480,1752659449639,-644.8,0.00020256,3]
[372479481,1752659449648,-397.02,0.00020256,3]
[372479482,1752659449658,-386.07177506,0.00020268,2]
[372479483,1752659449668,-1500.0,0.00020268,2]
[372479484,1752659449678,-1500.0,0.00020268,2]
[372479485,1752659449688,-502.09429587,0.00020268,2]
[372479486,1752659449698,-1026.52056024,0.00020268,2]
[372479487,1752659449708,-500.0,0.00020268,2]
[372479488,1752659449718,-1500.0,0.00020268,2]
[372479489,1752659449731,-460.0,0.00020273,2]
[372479490,1752659449742,-460.0,0.00020273,2]
[372479491,1752659449751,-460.0,0.00020273,2]
[372479492,1752659449761,-460.0,0.00020273,2]
[372479493,1752659449771,-544.59,0.00020273,2]
[372479494,1752659449781,-460.0,0.00020273,2]
[372479495,1752659449791,-460.0,0.00020273,2]
[372479496,1752659449802,-464.6380152,0.00020273,2]
[372479497,1752659449812,-460.0,0.00020273,2]
[372479498,1752659449821,-460.0,0.00020273,2]
[372479499,1752659449831,-460.0,0.00020273,2]
[372479500,1752659449841,-460.0,0.00020273,2]
[372479501,1752659449851,-460.0,0.00020273,2]
[372479502,1752659449861,-552.15439152,0.00020273,2]
[372479503,1752659449871,-221.55568455,0.00020273,2]
[372479504,1752659449882,-460.0,0.00020273,2]
[372479505,1752659449892,-460.0,0.00020273,2]
[372479506,1752659449902,-460.0,0.00020273,2]
[372479507,1752659449912,-460.0,0.00020273,2]
[372479508,1752659449922,-371.26784364,0.00020273,2]
[372479509,1752659449932,-460.0,0.00020273,2]
[372479510,1752659449943,-460.0,0.00020273,2]
[372479511,1752659449954,-460.0,0.00020273,2]
[372479512,1752659449964,-460.0,0.00020273,2]
[372479513,1752659449974,-460.0,0.00020273,2]
[372479514,1752659449984,-518.16,0.00020273,2]
[372479515,1752659449994,-460.0,0.00020273,2]
[372479516,1752659450004,-473.94804439,0.00020273,2]
[372479517,1752659450014,-460.0,0.00020273,2]
[372479518,1752659450024,-460.0,0.00020273,2]
[372479519,1752659450034,-359.01659589,0.00020273,2]
[372479520,1752659450043,-460.0,0.00020273,2]
[372479521,1752659450053,-460.0,0.00020273,2]
[372479522,1752659450067,-460.0,0.00020273,2]
[372479523,1752659450077,-551.23646663,0.00020273,2]
[372479524,1752659450086,-460.0,0.00020273,2]
[372479525,1752659450096,-581.31,0.00020273,2]
[372479526,1752659450106,-460.0,0.00020273,2]
[372479527,1752659450116,-560.38,0.00020273,2]
[372479528,1752659450126,-460.0,0.00020273,2]
[372479529,1752659450138,-460.0,0.00020273,2]
[372479530,1752659450149,-460.0,0.00020273,2]
[372479531,1752659450159,-598.99,0.00020273,2]
[372479532,1752659450169,-460.0,0.00020273,2]
[372479533,1752659450178,-978.82,0.00020273,2]
[372479534,1752659450189,-460.0,0.00020273,2]